bitfinex-derivatives/quotes_SOLF0:USTF0_20260311
["timestamp","ask_amount","ask_price","bid_price","bid_amount"]
[1773254953899,6.37524681,87.508,87.471,10.287]
[1773254955503,6.37524681,87.508,87.47,2.44199693]
[1773254955700,6.37524681,87.508,87.45,2.44199693]
[1773254956001,6.39515712,87.503,87.458,10.289]
[1773254956199,6.39515712,87.503,87.46,2.44199693]
[1773254957004,6.39515712,87.503,87.462,10.288]
[1773254958399,6.39515712,87.503,87.47,2.44199693]
[1773254958800,14.4,87.51,87.48,2.44199693]
[1773254959002,6.39883256,87.527,87.49,2.44199693]
[1773254959504,6.39883256,87.525,87.48,2.44199693]
[1773254960609,6.39883256,87.525,87.449,20.58]
[1773254960610,6.39883256,87.522,87.477,10.286]
[1773254962202,10.281,87.527,87.477,10.286]
[1773254962401,6.40919537,87.526,87.482,10.286]
[1773254962908,6.41173925,87.524,87.47,2.44199693]
[1773254963604,6.41173925,87.524,87.47,1.86984909]
[1773254964509,6.41173925,87.522,87.475,10.287]
[1773254965208,6.41190111,87.52,87.481,10.286]
[1773254965408,6.41190111,87.52,87.47,1.86984909]
[1773254965601,6.41190111,87.52,87.47,2.4364629]
[1773254965906,6.41190111,87.508,87.464,10.288]
[1773254966307,6.41190111,87.508,87.46,2.4364629]
[1773254968411,6.41190111,87.508,87.469,10.287]
[1773254974712,2.4364629,87.52,87.453,21.2383206]
[1773254974713,6.3843955,87.503,87.459,14.10689859]
[1773254974958,6.3843955,87.503,87.454,14.10689859]
[1773254975116,6.3843955,87.503,87.456,14.10689859]
[1773254975318,6.3843955,87.503,87.457,14.10689859]
[1773254976413,6.3843955,87.503,87.458,14.10689859]
[1773254976817,14.16378107,87.562,87.423,28.3177608]
[1773254976818,2.85598999,87.519,87.47,2.4364629]
[1773254977116,2.85598999,87.519,87.462,14.10689859]
[1773254977117,6.30008936,87.527,87.48,2.4364629]
[1773254977516,2.85522087,87.539,87.5,2.4364629]
[1773254977711,6.30008936,87.563,87.52,2.4364629]
[1773254977913,2.85496666,87.577,87.53,2.4364629]
[1773254978119,10.275,87.577,87.531,10.28]
[1773254978516,6.30008936,87.579,87.531,10.28]
[1773254978721,6.28971198,87.595,87.55,2.4364629]
[1773254978917,6.28971198,87.611,87.56,2.4364629]
[1773254979213,6.28971198,87.611,87.57,2.4364629]
[1773254979615,6.28971198,87.611,87.56,2.4364629]
[1773254980520,6.28971198,87.609,87.55,2.4364629]
[1773254981416,6.26558718,87.598,87.544,10.278]
[1773254982119,6.26558718,87.598,87.55,2.4364629]
[1773254983619,6.26558718,87.598,87.551,10.278]
[1773254984017,6.26558718,87.598,87.55,2.4364629]
[1773254987426,6.27866938,87.596,87.53,2.4364629]
[1773254987630,6.27866938,87.596,87.54,2.4364629]
[1773254988021,2.4364629,87.61,87.55,2.4364629]
[1773254988321,6.27866938,87.61,87.56,2.4364629]
[1773254988522,6.27866938,87.61,87.57,10.275]
[1773254988726,6.27866938,87.61,87.57,12.7114629]
[1773254991234,6.26680263,87.642,87.543,20.558]
[1773254991423,2.4364629,87.63,87.57,2.4364629]
[1773254991623,6.26680263,87.629,87.57,2.4364629]
[1773254992027,6.26680263,87.629,87.56,2.4364629]
[1773254992028,2.4364629,87.62,87.56,2.4364629]
[1773254992228,6.26680263,87.619,87.56,2.4364629]
[1773254992626,6.26680263,87.619,87.57,2.4364629]
[1773254993427,6.26680263,87.619,87.569,10.276]
[1773254993633,6.26680263,87.619,87.56,12.7134629]
[1773254994231,6.24752837,87.606,87.551,10.278]
[1773254994429,6.24752837,87.606,87.55,2.4364629]
[1773254994834,6.24752837,87.606,87.57,12.7114629]
[1773254995030,6.25906517,87.623,87.57,2.4364629]
[1773254995732,16.52906517,87.621,87.57,2.4364629]
[1773254995932,6.25906517,87.62,87.57,2.4364629]
[1773254996949,6.26546797,87.652,87.6,2.4364629]
[1773254997440,6.26546797,87.649,87.59,2.4364629]
[1773254997836,6.26546797,87.649,87.6,2.4364629]
[1773254998035,6.26546797,87.647,87.6,2.4364629]
[1773254999933,2.4364629,87.66,87.594,10.273]
[1773254999934,10.267,87.646,87.594,10.273]
[1773255000140,6.33040024,87.645,87.6,2.4364629]
[1773255000343,6.33040024,87.645,87.59,2.4364629]
[1773255000543,6.33040024,87.641,87.59,2.4364629]
[1773255000738,6.33135123,87.659,87.619,10.27]
[1773255000944,6.33135123,87.659,87.531,181.24908275]
[1773255000945,6.33135123,87.679,87.63,2.4364629]
[1773255001637,6.33135123,87.679,87.582,14.38]
[1773255001846,6.33135123,87.677,87.623,10.269]
[1773255002041,6.33135123,87.677,87.63,2.4364629]
[1773255002440,6.33135123,87.675,87.63,2.4364629]
[1773255003241,2.4364629,87.66,87.6,2.4364629]
[1773255003448,6.37066442,87.659,87.61,2.4364629]
[1773255003748,6.37066442,87.659,87.6,2.4364629]
[1773255004144,2.4364629,87.65,87.59,2.4364629]
[1773255004348,6.37066442,87.635,87.581,10.274]
[1773255004648,6.37066442,87.635,87.59,2.4364629]
[1773255004849,6.37066442,87.635,87.58,2.4364629]
[1773255005950,20.524,87.689,87.543,34.938]
[1773255005951,6.4387998,87.652,87.61,2.4364629]
[1773255006152,6.4387998,87.652,87.59,2.4364629]
[1773255006348,6.4387998,87.649,87.59,2.4364629]
[1773255006651,2.4364629,87.65,87.58,2.4364629]
[1773255006652,6.40177238,87.635,87.58,2.4364629]
[1773255006851,6.40177238,87.635,87.59,2.4364629]
[1773255007549,6.40177238,87.632,87.59,2.4364629]
[1773255007755,6.40177238,87.632,87.586,10.274]
[1773255009555,6.40177238,87.632,87.59,2.4364629]
[1773255010551,2.4364629,87.65,87.543,14.38]
[1773255010552,6.39382583,87.626,87.574,10.275]
[1773255010753,6.39382583,87.626,87.57,2.4364629]
[1773255010953,6.39382583,87.626,87.56,2.4364629]
[1773255011458,6.39185839,87.616,87.56,2.4364629]
[1773255012356,6.39185839,87.616,87.515,20.564]
[1773255012357,6.39185839,87.606,87.55,2.4364629]
[1773255012852,6.39185839,87.606,87.551,10.278]
[1773255014559,6.3779773,87.602,87.543,10.279]
[1773255015056,6.3779773,87.602,87.55,2.4364629]
[1773255016353,6.3779773,87.602,87.55,12.7144629]
[1773255016561,6.3779773,87.602,87.56,2.4364629]
[1773255016958,6.3779773,87.602,87.55,2.4364629]
[1773255018057,6.3779773,87.602,87.56,2.4364629]
[1773255018265,2.4364629,87.63,87.56,2.4364629]
[1773255018266,6.38616048,87.629,87.56,2.4364629]
[1773255018759,6.38616048,87.617,87.58,2.4364629]
[1773255019162,6.38616048,87.617,87.57,2.4364629]
[1773255019358,6.38601993,87.615,87.57,2.4364629]
[1773255021164,6.39843949,87.632,87.59,2.4364629]
[1773255021358,6.39843949,87.632,87.537,34.3]
[1773255021359,6.39843949,87.632,87.6,2.4364629]
[1773255022364,6.39843949,87.66,87.62,2.4364629]
[1773255022966,6.38440858,87.657,87.62,2.4364629]
[1773255024359,16.64940858,87.656,87.62,2.4364629]
[1773255024561,6.38440858,87.655,87.62,2.4364629]
[1773255025665,6.38440858,87.655,87.62,2.42864617]
[1773255026264,14.38,87.684,87.566,20.552]
[1773255026265,6.38820877,87.653,87.61,2.42864617]
[1773255027456,6.39012835,87.645,87.61,2.42864617]
[1773255027861,6.39012835,87.645,87.6,2.42864617]
[1773255028260,6.39012835,87.645,87.596,10.272]
[1773255028261,6.39012835,87.645,87.61,2.42864617]
[1773255028459,10.268,87.637,87.61,2.42864617]
[1773255028659,6.39012835,87.645,87.6,2.42864617]
[1773255030470,5.17871092,87.644,87.6,2.42864617]
[1773255031568,5.17871092,87.644,87.601,10.272]
[1773255033460,5.1747782,87.66,87.62,2.42864617]
[1773255033662,20.52,87.706,87.62,2.42864617]
[1773255033663,5.1747782,87.679,87.62,2.42864617]
[1773255034368,5.1747782,87.673,87.626,10.269]
[1773255035362,15.43939787,87.672,87.626,10.269]
[1773255035670,5.17539787,87.671,87.626,10.269]
[1773255036963,5.17539787,87.671,87.62,2.42864617]
[1773255037164,5.17539787,87.671,87.609,14.10689859]
[1773255037370,5.18070713,87.659,87.6,2.42864617]
[1773255037571,5.18070713,87.659,87.563,28.4400764]
[1773255037572,5.18070713,87.675,87.62,2.42864617]
[1773255037769,5.18070713,87.675,87.61,2.42864617]
[1773255038468,5.18070713,87.668,87.625,10.269]
[1773255038772,14.38,87.685,87.63,2.42864617]
[1773255038967,14.38,87.685,87.598,21.33208275]
[1773255038968,5.18314714,87.696,87.655,10.265]
[1773255039269,5.18314714,87.679,87.626,14.10689859]
[1773255039468,1.98525322,87.726,87.636,10.268]
[1773255039469,5.18314714,87.677,87.636,10.268]
[1773255040667,5.18314714,87.677,87.63,2.42864617]
[1773255040873,5.18314714,87.677,87.628,10.269]
[1773255041076,5.18314714,87.677,87.614,14.10689859]
[1773255041369,5.27887973,87.686,87.64,2.42864617]
[1773255042173,5.27887973,87.686,87.63,2.42864617]
[1773255042368,5.27882219,87.684,87.633,10.268]
[1773255042771,5.27882219,87.684,87.62,2.42864617]
[1773255043273,5.27882219,87.684,87.63,2.42864617]
[1773255043874,5.25273866,87.68,87.63,2.42864617]
[1773255044874,14.36,87.688,87.631,10.268]
[1773255044875,5.23280901,87.678,87.631,10.268]
[1773255045774,10.263,87.676,87.631,10.268]
[1773255045970,5.23280901,87.675,87.631,10.268]
[1773255047483,5.20076508,87.673,87.631,10.268]
[1773255047978,5.20076508,87.689,87.64,2.42864617]
[1773255048180,5.20076508,87.674,87.64,2.42864617]
[1773255052087,5.21545334,87.671,87.63,2.42864617]
[1773255052487,5.21545334,87.687,87.65,2.42864617]
[1773255053187,10.263,87.679,87.64,2.42864617]
[1773255053585,15.46713203,87.679,87.64,2.42864617]
[1773255055384,5.20413203,87.679,87.64,2.42864617]
[1773255055687,5.20413203,87.679,87.538,49.5560814]
[1773255055688,5.20214965,87.694,87.66,2.42864617]
[1773255057693,5.20214965,87.694,87.65,2.42864617]
[1773255058693,5.20214965,87.694,87.66,2.42864617]
[1773255059087,19.66580637,87.709,87.67,12.69264617]
[1773255059485,2.42864617,87.74,87.67,2.42864617]
[1773255059486,0.00080637,87.727,87.67,2.42864617]
[1773255059691,0.00080637,87.727,87.69,2.42864617]
[1773255059892,0.00080637,87.727,87.68,2.42864617]
[1773255060093,10.259,87.712,87.67,2.42864617]
[1773255060293,14.36,87.728,87.67,2.42864617]
[1773255060494,14.36,87.728,87.68,5.18142022]
[1773255060898,14.36,87.728,87.684,10.262]
[1773255061197,14.36,87.728,87.69,2.42864617]
[1773255061492,3.86816475,87.732,87.69,2.42864617]
[1773255061698,3.86816475,87.732,87.691,10.261]
[1773255062495,3.86816475,87.773,87.72,5.24412641]
[1773255062795,3.86816475,87.773,87.721,2.81548024]
[1773255063099,3.86816475,87.773,87.73,2.42864617]
[1773255063292,3.86816475,87.773,87.74,2.42864617]
[1773255064501,3.86816475,87.769,87.74,2.42864617]
[1773255065393,3.86816475,87.787,87.76,2.42864617]
[1773255066005,3.86816475,87.819,87.78,2.42864617]
[1773255066294,3.86816475,87.819,87.79,2.42864617]
[1773255066500,14.36,87.831,87.8,2.42864617]
[1773255066698,3.86816475,87.855,87.82,2.42864617]
[1773255067099,3.86816475,87.853,87.8,2.42864617]
[1773255067696,3.86816475,87.853,87.78,2.84751759]
[1773255067697,10.244,87.839,87.78,2.84751759]
[1773255067905,14.11216475,87.839,87.78,2.84751759]
[1773255068204,3.86816475,87.838,87.78,2.84751759]
[1773255068398,3.86816475,87.838,87.78,2.27863113]
[1773255069510,3.86816475,87.833,87.78,2.27863113]
[1773255069808,14.36,87.844,87.77,6.04721457]
[1773255070311,3.86816475,87.849,87.79,6.04721457]
[1773255070501,3.86816475,87.849,87.795,2.25950165]
[1773255071003,3.86816475,87.849,87.796,12.52113204]
[1773255071208,3.86816475,87.849,87.797,2.27213204]
[1773255072311,3.86816475,87.865,87.797,2.27213204]
[1773255072509,3.86816475,87.855,87.801,2.27213204]
[1773255073508,14.11016475,87.855,87.801,2.27213204]
[1773255073710,3.86816475,87.855,87.801,2.27213204]
[1773255074510,10.242,87.855,87.801,2.27213204]
[1773255074712,3.86816475,87.854,87.771,2.28287691]
[1773255075207,3.86816475,87.836,87.77,6.04721457]
[1773255075411,3.86816475,87.836,87.758,2.27472401]
[1773255075914,3.86816475,87.836,87.771,2.27472401]
[1773255076406,3.86816475,87.836,87.78,10.251]
[1773255076713,3.86816475,87.836,87.76,6.04721457]
[1773255076714,3.86816475,87.836,87.781,2.27472401]
[1773255077510,3.86816475,87.836,87.784,2.40192177]
[1773255078316,3.86816475,87.836,87.791,10.25]
[1773255078615,3.86816475,87.836,87.784,2.40192177]
[1773255078816,14.34,87.854,87.791,2.40443921]
[1773255079017,14.34,87.854,87.812,10.247]
[1773255079310,3.86816475,87.867,87.812,10.247]
[1773255079512,3.86816475,87.867,87.818,2.40443921]
[1773255079715,3.86816475,87.883,87.818,2.40443921]
[1773255079917,0.00073106,87.856,87.818,2.40443921]
[1773255080412,159.106,87.979,87.78,165.51221457]
[1773255080413,3.62711834,87.915,87.831,2.39406851]
[1773255081015,3.62711834,87.914,87.85,2.53985287]
[1773255081208,3.62711834,87.914,87.851,2.53985287]
[1773255081405,3.62711834,87.948,87.871,2.53985287]
[1773255081613,3.62711834,87.936,87.871,2.53985287]
[1773255082005,13.86011834,87.935,87.872,2.53985287]
[1773255082210,3.62711834,87.935,87.872,2.53985287]
[1773255082714,10.232,87.945,87.881,2.53985287]
[1773255083013,3.62711834,87.944,87.881,2.53985287]
[1773255083208,3.62711834,87.944,87.861,2.64350686]
[1773255084410,10.234,87.926,87.866,2.64350686]
[1773255084609,3.62711834,87.925,87.866,2.64350686]
[1773255086314,10.235,87.916,87.866,2.64350686]
[1773255087015,14.34,87.965,87.849,2.61829162]
[1773255087016,3.62711834,87.908,87.849,2.61829162]
[1773255087816,10.236,87.905,87.849,2.61829162]
[1773255088312,3.62711834,87.904,87.831,2.61829162]
[1773255088516,3.62711834,87.953,87.84,6.03878869]
[1773255088811,184.13934204,87.986,87.84,6.03878869]
[1773255088812,10.235,87.918,87.863,10.241]
[1773255089214,10.235,87.918,87.864,2.71111527]
[1773255089817,3.62711834,87.909,87.847,2.71111527]
[1773255090623,3.62711834,87.909,87.849,2.78203184]
[1773255091120,3.62711834,87.892,87.837,10.244]
[1773255091319,3.62711834,87.892,87.821,2.78203184]
[1773255092212,159.164,87.946,87.821,2.78203184]
[1773255092213,3.62711834,87.879,87.821,2.78203184]
[1773255092923,6.03878869,87.91,87.8,6.03878869]
[1773255092924,3.62711834,87.868,87.807,10.248]
[1773255093118,3.62711834,87.885,87.808,2.78388078]
[1773255093318,10.24,87.872,87.822,10.246]
[1773255093517,10.24,87.872,87.823,2.78388078]
[1773255093817,3.62711834,87.929,87.823,2.78388078]
[1773255094213,10.237,87.901,87.849,2.78388078]
[1773255094519,13.86411834,87.901,87.849,2.78388078]
[1773255094719,3.62711834,87.9,87.849,2.78388078]
[1773255095729,3.62711834,87.948,87.851,2.78681103]
[1773255097119,3.62711834,87.927,87.851,2.78681103]
[1773255097812,10.236,87.905,87.854,10.242]
[1773255098417,10.236,87.905,87.851,2.78681103]
[1773255099324,10.236,87.905,87.852,10.242]
[1773255099523,3.62711834,87.949,87.853,2.80249648]
[1773255099718,3.62711834,87.947,87.853,2.80249648]
[1773255100224,13.86111834,87.925,87.863,10.241]
[1773255100421,3.62711834,87.924,87.863,10.241]
[1773255100924,3.7125867,87.973,87.871,2.86064929]
[1773255102016,3.7125867,87.951,87.893,10.238]
[1773255102321,3.7125867,87.951,87.894,2.86066989]
[1773255102721,3.7125867,87.948,87.894,2.86066989]
[1773255104020,10.233,87.936,87.88,10.239]
[1773255104423,10.233,87.936,87.88,13.06172078]
[1773255104621,10.233,87.936,87.881,2.82272078]
[1773255104826,10.232,87.944,87.894,10.237]
[1773255106223,13.9445867,87.944,87.894,10.237]
[1773255107025,10.231,87.952,87.895,2.75211515]
[1773255107225,3.7125867,87.966,87.895,2.75211515]
[1773255107629,10.232,87.94,87.895,2.75211515]
[1773255107831,3.7125867,87.94,87.879,2.75211515]
[1773255108027,3.7125867,87.985,87.881,2.75211515]
[1773255108228,3.7125867,87.976,87.921,10.234]
[1773255108425,3.7125867,87.976,87.913,2.75211515]
[1773255109431,10.23,87.964,87.913,12.98711515]
[1773255110326,3.72393275,87.973,87.923,10.234]
[1773255110530,3.72393275,87.973,87.913,2.75211515]
[1773255111431,3.72393275,87.97,87.915,10.235]
[1773255111727,3.72393275,87.97,87.913,2.75211515]
[1773255113030,3.72393275,87.97,87.915,2.72249605]
[1773255113330,3.72393275,87.991,87.915,2.72249605]
[1773255114434,3.72393275,87.991,87.9,6.03878869]
[1773255114435,10.227,87.987,87.939,10.232]
[1773255115831,3.72393275,87.978,87.9,6.03878869]
[1773255116034,4.29281921,87.998,87.916,2.87095723]
[1773255116436,10.226,87.996,87.941,2.87095723]
[1773255116734,13.94993275,87.996,87.941,2.87095723]
[1773255117241,10.226,87.991,87.945,10.232]
[1773255117436,3.72393275,87.99,87.945,10.232]
[1773255118328,10.227,87.987,87.945,10.232]
[1773255118731,3.72393275,87.987,87.941,2.87095723]
[1773255118932,3.72393275,87.987,87.934,10.233]
[1773255119338,10.229,87.971,87.926,13.02544846]
[1773255119635,3.72393275,87.987,87.927,2.79144846]
[1773255120240,3.72393275,87.971,87.909,2.79144846]
[1773255121736,3.72393275,87.971,87.924,10.234]
[1773255122141,3.72393275,87.971,87.93,10.233]
[1773255122341,3.72393275,87.986,87.925,2.78660432]
[1773255123040,3.72393275,87.986,87.943,10.232]
[1773255123742,4.29281921,87.998,87.952,10.231]
[1773255123942,4.29281921,87.998,87.94,2.8430782]
[1773255124437,10.227,87.986,87.94,2.8430782]
[1773255125043,10.228,87.98,87.94,2.8430782]
[1773255125243,3.72393275,87.984,87.925,2.85743622]
[1773255125643,10.228,87.974,87.933,13.09043622]
[1773255125944,3.72393275,87.984,87.934,2.85743622]
[1773255126745,10.228,87.977,87.934,2.85743622]
[1773255128045,3.72393275,87.984,87.934,2.85743622]
[1773255128548,3.72393275,87.984,87.901,2.80183781]
[1773255128845,10.229,87.966,87.915,2.85462578]
[1773255129043,3.72393275,87.996,87.915,2.85462578]
[1773255130448,10.227,87.985,87.938,10.232]
[1773255131753,13.95093275,87.985,87.938,10.232]
[1773255133046,13.95093275,87.985,87.932,2.85462578]
[1773255133047,3.72393275,87.985,87.932,2.85462578]
[1773255133344,4.29281921,87.998,87.932,2.85462578]
[1773255133549,1.97809319,88.056,87.963,2.89828667]
[1773255133750,14.32,88.115,88.001,3.6969546]
[1773255133938,14.32,88.115,88.021,3.6969546]
[1773255134140,14.32,88.098,88.003,3.6969546]
[1773255134747,10.218,88.062,88.003,3.6969546]
[1773255134941,14.32,88.098,88.003,3.6969546]
[1773255135641,10.218,88.065,88.005,3.6969546]
[1773255136043,10.219,88.056,88.005,3.6969546]
[1773255136244,3.72393275,88.068,87.989,3.6969546]
[1773255136448,11.69406721,88.071,87.989,3.6969546]
[1773255136645,10.22,88.048,87.991,10.226]
[1773255136944,11.69406721,88.071,87.989,3.6969546]
[1773255137148,10.221,88.039,87.989,3.6969546]
[1773255138050,10.222,88.03,87.989,3.6969546]
[1773255138450,3.72393275,88.041,87.989,3.6969546]
[1773255139443,10.221,88.04,87.989,3.6969546]
[1773255140850,10.219,88.051,87.992,3.86817623]
[1773255141547,11.69406721,88.071,88.002,3.86817623]
[1773255141943,3.95041673,88.07,88.002,3.86817623]
[1773255142350,3.95041673,88.063,88.002,14.09317623]
[1773255143443,3.95041673,88.058,88.002,14.09317623]
[1773255143847,3.95041673,88.058,88.002,3.86817623]
[1773255144548,10.22,88.046,88.002,3.86817623]
[1773255144946,3.95041673,88.058,87.98,6.03878869]
[1773255144947,3.95041673,88.058,87.98,3.86817623]
[1773255145546,14.17141673,88.037,87.982,10.227]
[1773255145746,14.17141673,88.037,87.983,3.86817623]
[1773255146453,10.221,88.037,87.987,3.86817623]
[1773255147345,10.221,88.037,87.99,3.86817623]
[1773255147745,3.95041673,88.053,87.99,3.86817623]
[1773255148254,3.95041673,88.053,87.964,13.7930212]
[1773255148255,14.3,88.061,88.002,3.86817623]
[1773255148760,24.518,88.061,88.005,3.86817623]
[1773255149054,3.95041673,88.06,88.005,3.86817623]
[1773255149255,3.95041673,88.051,88.005,3.86817623]
[1773255149558,3.95041673,88.07,88.005,3.86817623]
[1773255150452,10.218,88.06,88.007,3.86817623]
[1773255151556,10.218,88.06,88.01,3.86817623]
[1773255152457,10.218,88.06,88.012,14.09217623]
[1773255152658,10.218,88.06,88.013,3.86817623]
[1773255153056,10.219,88.054,88.013,3.86817623]
[1773255153261,3.95041673,88.053,87.96,3.86817623]
[1773255153457,3.95041673,88.049,87.96,3.86817623]
[1773255153654,3.95041673,88.035,87.96,3.86817623]
[1773255153864,3.95041673,88.035,87.971,3.86817623]
[1773255154561,3.95041673,88.035,87.982,10.227]
[1773255154753,3.95041673,88.035,87.971,3.86817623]
[1773255155368,10.223,88.02,87.974,10.228]
[1773255156464,3.95041673,88.035,87.978,10.228]
[1773255156465,10.222,88.028,87.978,10.228]
[1773255157754,10.223,88.02,87.978,10.228]
[1773255158063,10.223,88.02,87.975,3.86817623]
[1773255158264,3.95041673,88.028,87.975,3.86817623]
[1773255158859,3.95041673,88.048,87.991,3.86817623]
[1773255159058,3.95041673,88.048,87.953,20.462]
[1773255159059,3.95041673,88.048,87.975,3.86817623]
[1773255159661,10.222,88.027,87.976,10.228]
[1773255161472,10.222,88.027,87.98,14.1597603]
[1773255162970,3.6338531,88.023,87.98,10.228]
[1773255163967,3.6338531,88.008,87.95,6.01714879]
[1773255164172,3.6338531,88.008,87.951,3.9317603]
[1773255164367,10.225,88.004,87.957,10.23]
[1773255164769,10.225,88.004,87.951,3.9317603]
[1773255165369,10.226,87.997,87.951,3.9317603]
[1773255165873,3.6338531,87.994,87.936,3.9317603]
[1773255166064,3.6338531,87.994,87.92,3.9317603]
[1773255166268,10.228,87.98,87.929,10.233]
[1773255166469,3.6338531,87.994,87.93,3.9317603]
[1773255166676,3.6338531,87.994,87.913,3.9317603]
[1773255166875,10.23,87.963,87.916,10.235]
[1773255167269,3.6338531,87.968,87.913,3.9317603]
[1773255168267,3.6338531,88.01,87.921,3.9317603]
[1773255168465,14.3,88.012,87.941,3.9317603]
[1773255168665,3.6338531,88.026,87.961,3.9317603]
[1773255170372,10.223,88.018,87.969,10.229]
[1773255172175,10.224,88.009,87.961,3.9317603]
[1773255172374,3.6338531,88.026,87.961,3.9317603]
[1773255172581,3.6338531,88.026,87.917,27.58604241]
[1773255172582,4.01746255,88.002,87.945,3.74901902]
[1773255174479,4.01746255,88.002,87.928,13.7930212]
[1773255174779,4.01746255,88.002,87.911,3.74901902]
[1773255175176,10.229,87.968,87.921,10.234]
[1773255175777,10.229,87.968,87.897,20.68953181]
[1773255175778,4.01746255,87.974,87.904,13.7930212]
[1773255175982,4.01746255,87.974,87.901,3.74901902]
[1773255176983,10.23,87.96,87.913,13.7930212]
[1773255177184,4.01746255,87.974,87.912,13.7930212]
[1773255177583,10.23,87.959,87.915,10.235]
[1773255177882,10.23,87.959,87.904,13.7930212]
[1773255178287,10.23,87.959,87.903,13.7930212]
[1773255178987,14.24746255,87.959,87.907,10.236]
[1773255179183,10.231,87.952,87.901,3.74901902]
[1773255179382,4.01746255,87.951,87.901,3.74901902]
[1773255179579,4.01746255,87.951,87.894,13.7930212]
[1773255179987,4.01746255,87.951,87.895,3.74901902]
[1773255180187,4.01746255,87.968,87.899,3.74901902]
[1773255180388,10.231,87.955,87.909,10.236]
[1773255180988,10.232,87.944,87.901,10.237]
[1773255181691,10.233,87.936,87.89,13.7930212]
[1773255181882,10.233,87.936,87.886,3.74901902]
[1773255181883,4.01746255,87.936,87.886,3.74901902]
[1773255182282,4.01746255,87.936,87.872,10.24]
[1773255182488,4.01746255,87.936,87.87,3.74901902]
[1773255182990,10.235,87.916,87.871,10.24]
[1773255183187,10.235,87.916,87.87,3.74901902]
[1773255183387,4.01746255,87.921,87.853,3.74901902]
[1773255183691,4.01746255,87.901,87.837,3.74901902]
[1773255184392,4.01746255,87.893,87.837,3.74901902]
[1773255184886,10.24,87.877,87.824,10.246]
[1773255185090,14.25746255,87.877,87.824,10.246]
[1773255185287,4.01746255,87.876,87.824,10.246]
[1773255185591,4.01746255,87.876,87.828,10.245]
[1773255185992,14.32,87.913,87.839,3.74901902]
[1773255186191,4.01746255,87.916,87.841,3.74901902]
[1773255186787,10.236,87.912,87.859,10.242]
[1773255186991,10.236,87.912,87.811,20.68953181]
[1773255186992,4.01746255,87.933,87.861,3.74901902]
[1773255188493,10.235,87.921,87.871,10.24]
[1773255188694,4.01746255,87.92,87.841,3.74901902]
[1773255189291,4.01746255,87.908,87.861,10.241]
[1773255191296,6.01714879,87.96,87.841,3.74901902]
[1773255191297,4.01746255,87.906,87.841,3.74901902]
[1773255191493,4.01746255,87.906,87.821,3.74901902]
[1773255191694,4.01746255,87.881,87.823,10.246]
[1773255191896,4.01746255,87.881,87.803,3.74901902]
[1773255192095,14.32,87.88,87.785,3.74901902]
[1773255192305,4.01746255,87.879,87.785,3.74901902]
[1773255192601,4.01746255,87.859,87.8,10.248]
[1773255193404,4.01746255,87.859,87.792,10.249]
[1773255193800,4.01746255,87.859,87.785,3.74901902]
[1773255194001,10.244,87.84,87.786,10.25]
[1773255194301,4.01746255,87.859,87.785,3.74901902]
[1773255195406,10.243,87.849,87.793,10.249]
[1773255195602,14.32,87.865,87.793,10.249]
[1773255195801,4.01746255,87.849,87.766,3.74901902]
[1773255196008,4.01746255,87.816,87.751,3.74901902]
[1773255196207,4.01746255,87.838,87.761,3.74901902]
[1773255197610,10.246,87.825,87.774,10.252]
[1773255198010,4.01746255,87.818,87.764,10.253]
[1773255198311,4.01746255,87.818,87.741,3.74901902]
[1773255198907,4.01746255,87.816,87.741,3.74901902]
[1773255199108,4.01746255,87.792,87.725,10.257]
[1773255199508,4.01746255,87.792,87.723,3.74901902]
[1773255200305,4.01746255,87.792,87.725,10.257]
[1773255200506,4.01746255,87.792,87.725,14.05972614]
[1773255201003,14.34,87.817,87.725,3.80272614]
[1773255201004,3.93436777,87.778,87.725,3.80272614]
[1773255201204,3.93436777,87.796,87.725,3.80272614]
[1773255201613,10.25,87.787,87.728,10.257]
[1773255202112,3.93436777,87.815,87.756,10.254]
[1773255203110,3.93436777,87.815,87.765,10.253]
[1773255203813,14.34,87.83,87.741,3.80272614]
[1773255203814,3.93436777,87.812,87.741,3.80272614]
[1773255205106,10.249,87.801,87.741,14.05772614]
[1773255205310,14.18336777,87.801,87.741,14.05772614]
[1773255205505,3.93436777,87.8,87.741,14.05772614]
[1773255205714,3.93436777,87.786,87.722,3.80272614]
[1773255206815,3.93436777,87.786,87.738,10.256]
[1773255208012,10.248,87.802,87.746,10.255]